Cogmind - Beta 13 *** ADVENTURER MODE // 2024.04.19 @ 23:29:31 Player: AnotherZach Result: Destroyed by C-40 Crusher with Compactor Performance ------------- Evolutions (5) 2500 Regions Visited (14) 2800 Robots Destroyed (339) 1695 Value Destroyed (10621) 10621 Prototype IDs (13) 260 Alien Tech Used (0) 0 Bonus (3523) 3523 TOTAL SCORE: 21399 Bonus ------- High Alert Combat Kills 1560 Follower Combat Kills 1190 Entered Garrisons 200 Used RIF Installer 500 Met Zhirov 300 Friendly Fire -227 Cogmind --------- Core Integrity 0/1000 Matter 256/300 Energy 100/100 System Corruption 14% Temperature Cool (0) Movement Core (50) Location -5/Waste Parts ------- > --- POWER (2) -------- (None) > --- PROPULSION (4) --- (None) > --- UTILITY (9) ------ (None) > --- WEAPON (2) ------- (None) > --- INVENTORY (5) ---- Improved Heat Sink Layered Light Armor Plating Quantum Rifle Peak State ------------ > --- POWER ------------ Reinforced Deuterium Engine Quantum Reactor > --- PROPULSION ------- Medium Treads Improved Medium Treads Centrium Heavy Treads > --- UTILITY ---------- High-capacity Storage Unit Improved Melee Analysis Suite Improved Melee Analysis Suite Improved Melee Analysis Suite Core Analyzer Centrium Medium Armor Plating Centrium Medium Armor Plating > --- WEAPON ----------- Advanced KE Penetrator Katana > --- INVENTORY -------- Light Deuterium Engine Centrium Heavy Treads Improved Sensor Array Improved Signal Interpreter Improved Melee Analysis Suite Core Analyzer Core Analyzer Transmission Jammer Improved Light Armor Plating Improved Light Armor Plating Hacking Suite Gauss Cannon Bore Cannon Long-range Missile Launcher Long-range Missile Launcher Katana Katana Katana Scythe [Rating: 94] Favorites ----------- Power Light Nuclear Core Engine Light Ion Engine Power Core Light Nuclear Core Reactor Quantum Reactor Propulsion Armored Treads Treads Armored Treads Leg Flexi-carbon Leg Wheel Armored Wheel Utility Improved Melee Analysis Suite Device Force Booster Storage High-capacity Storage Unit Processor Improved Melee Analysis Suite Hackware Hacking Suite Protection Improved Medium Armor Plating Weapon Katana Energy Gun Heavy Particle Gun Energy Cannon Heavy Particle Cannon Ballistic Gun Heavy Assault Rifle Ballistic Cannon Improved Light Cannon Launcher Long-range Missile Launcher Special Weapon Remote Datajack Impact Weapon Heavy Flail Slashing Weapon Katana Build | -11 -10 -9 -9 -8 -8 -7 -7 -6 -6 -6 -6 -6 -5 -5 ------- Run | Yrd Mat Mat Sto Mat Gar Fac Low Fac Ext Cet Arc Hub Fac Was Slots Evolved 10 | . . 2 . 2 . 2 . 2 . . . . 2 . Power 1 | . . 1 . . . . . . . . . . . . Propulsion 2 | . . 1 . . . . . 1 . . . . . . Utility 7 | . . . . 2 . 2 . 1 . . . . 2 . Weapon . | . . . . . . . . . . . . . . . Parts Attached 256 | 8 4 39 25 12 38 40 10 13 29 8 6 14 6 4 Power 43 | 1 . 9 7 1 6 8 2 2 4 1 . 2 . . Engine 26 | 1 . 7 7 . 3 3 1 . 3 . . 1 . . Core 16 | . . 2 . 1 3 5 1 2 1 . . 1 . . Reactor 1 | . . . . . . . . . . 1 . . . . Propulsion 71 | 2 1 12 5 2 9 15 4 2 11 2 . 4 1 1 Treads 38 | . . . . . 6 8 4 2 11 2 . 4 1 . Leg 1 | . . . . . . . . . . . . . . 1 Wheel 32 | 2 1 12 5 2 3 7 . . . . . . . . Hover . | . . . . . . . . . . . . . . . Flight . | . . . . . . . . . . . . . . . Utility 77 | 2 1 5 2 6 10 12 1 5 13 3 4 5 5 3 Device 16 | 1 . 1 . 1 3 3 . 2 4 . 1 . . . Storage 4 | 1 1 . . . 1 . . . . . . . 1 . Processor 13 | . . . . 2 1 1 . 2 2 . . 2 2 1 Hackware 5 | . . . . . . 2 . . . 1 1 . 1 . Protection 39 | . . 4 2 3 5 6 1 1 7 2 2 3 1 2 Artifact . | . . . . . . . . . . . . . . . Weapon 65 | 3 2 13 11 3 13 5 3 4 1 2 2 3 . . Energy Gun 7 | 3 . 2 . 1 1 . . . . . . . . . Energy Cannon 3 | . . 1 1 . 1 . . . . . . . . . Ballistic Gun 21 | . 2 5 7 1 5 . . . . 1 . . . . Ballistic Cannon 8 | . . 3 . . 2 1 2 . . . . . . . Launcher 4 | . . . 1 1 . . . . . . 1 1 . . Special Weapon 3 | . . . . . . 3 . . . . . . . . Impact Weapon 10 | . . 2 2 . 4 1 1 . . . . . . . Slashing Weapon 9 | . . . . . . . . 4 1 1 1 2 . . Piercing Weapon . | . . . . . . . . . . . . . . . Special Melee Weapon . | . . . . . . . . . . . . . . . Unidentified Prototypes 9 | . . 3 . 1 . 1 . . . 3 . . 1 . Corrupted Parts 1 | . . . . . . 1 . . . . . . . . System Corruption 7 | . . . . . . 7 . . . . . . . . Parts Lost 79 | . 1 5 4 4 12 17 3 3 14 . 1 6 . 9 Power 18 | . . 2 . . 3 6 2 1 2 . . . . 2 Propulsion 26 | . . 2 4 1 4 6 . . 5 . . 2 . 2 Utility 32 | . 1 1 . 3 5 3 1 2 6 . 1 4 . 5 Weapon 3 | . . . . . . 2 . . 1 . . . . . Highest Loss Streak 9 | . 1 2 2 2 4 8 2 2 9 . 1 5 . 9 To Critical Strikes 1 | . . . . . . . . . . . . . . 1 Average Slot Usage (%) 94 | . 99 98 97 99 92 89 84 98 97 94 93 90 94 62 Engine 9 | . 14 17 22 15 5 3 . 4 4 7 6 4 . . Core 4 | . . 4 . 2 7 7 6 6 7 . . 1 5 3 Treads 11 | . . . . . 13 12 22 26 25 21 20 18 17 10 Wheel 13 | . 28 32 31 26 13 6 . . . . . . . . Device 5 | . 13 . . 9 9 8 6 6 4 . 3 . . . Storage 8 | . 14 11 11 9 9 7 7 6 6 6 6 6 5 3 Processor 11 | . . . . 8 7 15 15 18 25 26 26 21 23 16 Hackware 2 | . . . . . . 4 7 5 . 3 6 6 10 7 Protection 7 | . . 10 11 9 7 6 7 8 5 9 3 9 11 6 Energy Gun 1 | . 3 . . 7 2 . . . . . . . . . Ballistic Gun 5 | . 24 9 13 10 4 . . . . . . . . . Ballistic Cannon 2 | . . 9 1 . 4 3 . . . . . . . . Impact Weapon 3 | . . . 6 . 2 7 8 4 . . . . . . Slashing Weapon 3 | . . . . . . . . 7 13 13 11 9 11 7 Naked Turns 21 | . . . . . . . . . . . . . . 21 Heaviest Build 107 | 15 90 105 107 107 103 83 66 75 89 93 92 92 84 80 Greatest Support 160 | 32 32 42 40 44 60 69 60 80 120 140 138 160 135 135 Greatest Overweight (x) 8 | . 3 6 8 3 8 4 1 . 1 . . . . . Average Overweight (x) 1 | . 1 2 2 2 1 . . . . . . . . . Largest Inventory Capacity 25 | 8 25 25 25 25 25 20 20 20 20 20 20 20 20 20 Average Capacity 21 | 7 23 25 25 25 20 20 20 20 20 20 20 20 20 14 Most Carried 25 | 8 25 25 25 25 25 20 20 20 20 20 20 20 20 20 Average Carried 20 | 5 18 24 24 24 20 19 16 19 19 19 19 19 19 13 Final Capacity 25 | 8 25 25 25 25 20 20 20 20 20 20 20 20 20 5 Final Carried 25 | 8 24 25 25 25 20 20 19 20 20 20 19 20 20 3 Class Distribution -------------------- 39% | Scavenger-Mutant 25% | Mutant 10% | Hacker-Gladiator 9% | Scavenger-Gladiator 8% | Hacker-Mutant 6% | Gladiator Dominant Class ---------------- Mutant | -10/Materials Scavenger-Mutant | -9/Materials Mutant | -9/Storage Scavenger-Mutant | -8/Materials Scavenger-Mutant | -8/Garrison Scavenger-Mutant | -7/Factory Hacker-Mutant | -7/Lower Caves Hacker-Gladiator | -6/Factory Gladiator | -6/Extension Scavenger-Gladiator | -6/Cetus Scavenger-Gladiator | -6/Archives Scavenger-Gladiator | -6/Hub_04(d) Hacker-Gladiator | -5/Factory Hacker-Gladiator | -5/Waste Resources | -11 -10 -9 -9 -8 -8 -7 -7 -6 -6 -6 -6 -6 -5 -5 ----------- Run | Yrd Mat Mat Sto Mat Gar Fac Low Fac Ext Cet Arc Hub Fac Was Matter Collected 5415 | 280 354 934 556 322 922 767 183 303 292 89 69 268 76 . Remotely 541 | 187 354 . . . . . . . . . . . . . Salvage Created 13762 | 166 816 1514 1759 835 1726 2973 201 1397 1072 125 231 871 76 . Parts 616 | 9 44 106 83 35 72 91 6 64 45 3 15 39 4 . Haulers Intercepted 16 | . 2 5 3 1 . 2 . 1 1 . . 1 . . Recyclers Shooed 4 | . . 1 1 . . 1 . . . . . 1 . . Parts Field Recycled . | . . . . . . . . . . . . . . . Retrieved Matter . | . . . . . . . . . . . . . . . Parts Self-Destructed . | . . . . . . . . . . . . . . . Prevented 6 | . . . . . . . 6 . . . . . . . Kills | -11 -10 -9 -9 -8 -8 -7 -7 -6 -6 -6 -6 -6 -5 -5 ------- Run | Yrd Mat Mat Sto Mat Gar Fac Low Fac Ext Cet Arc Hub Fac Was Combat Hostiles Destroyed 212 | . 9 29 34 14 36 41 4 9 14 2 3 17 . . Melee 58 | . 1 . 7 . 1 19 . 7 14 2 . 7 . . Guns 59 | . 8 7 13 11 20 . . . . . . . . . Cannons 46 | . . 22 6 . 14 3 1 . . . . . . . AOE 22 | . . . 3 3 . 3 . . . . 3 10 . . Classes Destroyed 17 | 2 5 4 . 1 2 2 1 . . . . . . . Worker 35 | . 2 4 9 2 . 9 . 5 . . . 2 2 . Builder 22 | . 1 4 2 . . 13 . 2 . . . . . . Tunneler 3 | 3 . . . . . . . . . . . . . . Hauler 16 | . 2 5 3 1 . 2 . 1 1 . . 1 . . Recycler 23 | 1 2 2 3 3 . 6 . 5 . . . 1 . . Mechanic 1 | . . . . . . 1 . . . . . . . . Operator 5 | . . 1 1 2 . . . . 1 . . . . . Watcher 24 | . 3 5 1 1 . 6 . 4 . . . 3 1 . Swarmer 43 | . . 8 9 5 12 3 . 3 . . . 3 . . Grunt 103 | . 9 12 12 5 17 26 . 3 5 1 3 10 . . Brawler 4 | . . . . . . 2 . . 1 . . 1 . . Duelist 2 | . . 2 . . . . . . . . . . . . Sentry 39 | . . 7 13 3 3 4 1 1 6 . . 1 . . Hunter 4 | . . . . 1 . 1 . . 1 . . 1 . . Programmer 11 | . . . . . 3 5 . 2 . . . 1 . . Behemoth 3 | . . . . . 1 . 1 . 1 . . . . . Cetus Guard 1 | . . . . . . . . . . 1 . . . . Fireman 2 | . . . . . . . 2 . . . . . . . Best Kill Streak 14 | 2 4 7 8 7 9 10 1 12 3 1 3 14 2 . Combat Bots Only 11 | . 3 6 5 5 9 5 1 3 3 1 3 11 . . Max Kills in Single Turn 4 | 1 2 1 3 2 1 3 1 1 1 1 3 4 1 . Gunslinging 1 | . . . 1 . . . . . . . . . . . Exploded 3 | . . . 2 1 . 3 . . . . 3 3 . . Melee 1 | . 1 . 1 . 1 1 . 1 1 1 . 1 . . Uniques/NPCs Destroyed . | . . . . . . . . . . . . . . . Combat | -11 -10 -9 -9 -8 -8 -7 -7 -6 -6 -6 -6 -6 -5 -5 -------- Run | Yrd Mat Mat Sto Mat Gar Fac Low Fac Ext Cet Arc Hub Fac Was Hostile Shots Fired 1988 | . 55 176 161 74 213 430 49 149 380 54 47 168 . 32 Missed 551 | . 20 45 41 20 70 114 9 44 103 9 27 49 . . Damage Taken 17473 | . 338 1093 1248 578 1750 3497 555 1218 2722 707 1043 1453 . 1271 Core 2916 | . 78 92 144 70 170 493 119 142 299 82 85 137 . 1005 Absorbed by Shields 448 | . . . . . . . . . 267 181 . . . . Redirected to Shielding 79 | . . . . . . . . 79 . . . . . . Ignored by Resistances 5134 | . 93 343 363 168 503 1030 157 357 900 239 274 410 . 297 Regen/Repaired (Parts) 211 | . . 28 104 . . 79 . . . . . . . . Core Remaining (%) 48 | 100 68 . 41 . 56 . 12 . . . . 12 . . Volleys Fired 508 | 8 45 125 55 57 140 58 6 . . . 3 11 . . Largest 2 | 2 2 2 2 2 2 1 1 . . . 1 1 . . Hottest 107 | 90 90 107 91 88 98 48 44 . . . 43 43 . . Shots Fired 894 | 16 90 230 103 114 263 58 6 . . . 3 11 . . Gun 553 | 16 90 126 76 110 135 . . . . . . . . . Cannon 310 | . . 104 24 . 128 48 6 . . . . . . . Launcher 21 | . . . 3 4 . . . . . . 3 11 . . Special 10 | . . . . . . 10 . . . . . . . . Kinetic 658 | . 88 206 93 62 155 48 6 . . . . . . . Thermal 199 | 16 1 19 7 48 108 . . . . . . . . . Explosive 21 | . . . 3 4 . . . . . . 3 11 . . Electromagnetic 6 | . 1 5 . . . . . . . . . . . . Robot Hit Streak 27 | 10 14 24 17 27 27 9 5 . . . 2 7 . . Robot Miss Streak 3 | 1 2 2 2 3 3 2 1 . . . 1 1 . . Penetration Max 1 | . . . . . 1 . . . . . . . . . Secondary Targets 8 | . 4 3 1 . . . . . . . . . . . Max Gunslinging Chain 1 | . 1 1 1 . . . . . . . . . . . Shots Hit Robots 1041 | 11 68 179 121 91 205 147 16 51 72 22 5 41 6 6 Core Hits 431 | 5 29 73 47 40 68 44 1 18 32 6 23 40 2 3 Critical Kills 2 | . . 1 . . . 1 . . . . . . . . Critical Parts Destroyed 33 | . . 1 9 1 1 19 2 . . . . . . . Critical Strikes 71 | 1 . 5 12 1 4 23 3 1 13 4 . 4 . . Burn 2 | 1 . . . . 1 . . . . . . . . . Meltdown 1 | . . 1 . . . . . . . . . . . . Destroy 2 | . . . . 1 1 . . . . . . . . . Blast 11 | . . 3 2 . 2 3 1 . . . . . . . Smash 33 | . . 1 10 . . 20 2 . . . . . . . Sever 22 | . . . . . . . . 1 13 4 . 4 . . Melee Attacks 476 | . . 11 92 . 27 126 12 59 75 23 3 35 7 6 Impact 286 | . . 11 92 . 27 126 12 18 . . . . . . Slashing 190 | . . . . . . . . 41 75 23 3 35 7 6 Piercing . | . . . . . . . . . . . . . . . Sneak Attacks 65 | . . 1 12 . . 28 . 18 2 . . 1 3 . Combat Hostiles 2 | . . . 1 . . 1 . . . . . . . . Follow-up Attacks 28 | . . . . . . . . 7 12 5 . 2 1 1 Damage Inflicted 36625 | 130 909 2830 3727 1894 5042 9320 755 3367 3034 792 1288 3028 314 195 Guns 5894 | 130 864 946 872 1544 1538 . . . . . . . . . Cannons 5723 | . . 1811 372 . 2633 750 157 . . . . . . . Explosions 3896 | . . . 361 350 . 295 . . . . 1018 1872 . . Melee 20977 | . . 73 2122 . 871 8275 598 3367 3034 792 270 1156 314 105 Ramming 135 | . 45 . . . . . . . . . . . . 90 Kinetic 7888 | . 827 2402 1121 685 1946 750 157 . . . . . . . Thermal 3650 | 130 13 300 123 859 2225 . . . . . . . . . Explosive 3601 | . . . 361 350 . . . . . . 1018 1872 . . Electromagnetic 374 | . 24 55 . . . 295 . . . . . . . . Impact 13194 | . . 73 2122 . 871 8275 598 1255 . . . . . . Slashing 7783 | . . . . . . . . 2112 3034 792 270 1156 314 105 Piercing . | . . . . . . . . . . . . . . . Highest Corruption 20 | . 4 . 1 . 2 18 20 6 8 9 9 13 . 14 Average Corruption 6 | . 1 . 1 . 1 10 18 2 6 8 4 6 . 8 Corruption Purged 7 | . . . . . . . . . . . 7 . . . Corruption Blocked . | . . . . . . . . . . . . . . . Effects 177 | . 4 . 9 . 22 36 34 5 38 12 4 9 . 4 Message Errors 43 | . 2 . 2 . 3 9 10 1 10 2 . 3 . 1 Matter Fused 41 | . 2 . 1 . 7 8 7 1 7 3 3 1 . 1 Heat Flow Errors 24 | . . . 1 . 1 2 3 1 8 4 . 3 . 1 Energy Discharges 23 | . . . 4 . 3 1 7 . 5 1 1 1 . . Parts Rejected 1 | . . . . . . . . 1 . . . . . . Parts Fused 3 | . . . 1 . . . 1 . 1 . . . . . Data Loss (minor) 25 | . . . . . 4 8 3 1 6 2 . 1 . . Data Loss (major) 9 | . . . . . 2 5 1 . 1 . . . . . Alerts 5 | . . . . . 1 3 1 . . . . . . . Misdirections 2 | . . . . . . . 1 . . . . . . 1 Weapon Failures 1 | . . . . . 1 . . . . . . . . . Overload Shots . | . . . . . . . . . . . . . . . Overflow Damage 6047 | . . 88 896 9 229 3504 178 868 195 . . 50 30 . Projectiles 190 | . . 15 . . 81 83 11 . . . . . . . Explosions 24 | . . . . 9 . . . . . . . 15 . . Melee 5833 | . . 73 896 . 148 3421 167 868 195 . . 35 30 . Knockbacks 64 | . . 9 4 . 9 35 3 4 . . . . . . Impact 37 | . . . 3 . 2 26 2 4 . . . . . . Kinetic 22 | . . 9 1 . 5 6 1 . . . . . . . Secondary 5 | . . . . . 2 3 . . . . . . . . Self-Inflicted Damage 319 | . 22 . 87 16 . 94 . . . . 47 14 . 39 Shots 10 | . . . 3 1 . 4 . . . . 1 1 . . Rammed 21 | . 1 . . . . . . . . . . . . 20 Targets Rammed 21 | . 1 . . . . . . . . . . . . 20 Kicked . | . . . . . . . . . . . . . . . Crushed . | . . . . . . . . . . . . . . . Highest Temperature 399 | 120 30 399 264 84 161 219 256 169 267 298 14 277 . 162 Average Temperature 80 | 41 8 127 60 21 25 57 110 83 93 120 9 77 . 82 Received Heat Transfer 6000 | . 225 345 411 252 840 1581 550 177 700 238 54 627 . . Effects 20 | . . 14 . . . . . . . 3 . 3 . . Shutdowns 3 | . . 3 . . . . . . . . . . . . Energy Bleed 6 | . . 6 . . . . . . . . . . . . Interference 9 | . . 3 . . . . . . . 3 . 3 . . Matter Decay 1 | . . 1 . . . . . . . . . . . . Short Circuit 1 | . . 1 . . . . . . . . . . . . Siege Activations . | . . . . . . . . . . . . . . . Robots Corrupted . | . . . . . . . . . . . . . . . Combat Hostiles . | . . . . . . . . . . . . . . . Parts Fried 66 | . . 3 14 . 5 35 2 5 2 . . . . . Impact Corruptions 166 | . . 1 30 . 5 111 5 14 . . . . . . Robots Melted 1 | . . 1 . . . . . . . . . . . . Combat Hostiles . | . . . . . . . . . . . . . . . Parts Melted 7 | . . 2 . 1 3 . . 1 . . . . . . Heat Transferred 6045 | 421 37 518 222 1554 3293 . . . . . . . . . Parts Sabotaged . | . . . . . . . . . . . . . . . Parts Stolen . | . . . . . . . . . . . . . . . Parts Stripped . | . . . . . . . . . . . . . . . Power Chain Reactions 2 | . . . . . . 2 . . . . . . . . Alert | -11 -10 -9 -9 -8 -8 -7 -7 -6 -6 -6 -6 -6 -5 -5 ------- Run | Yrd Mat Mat Sto Mat Gar Fac Low Fac Ext Cet Arc Hub Fac Was Peak Influence 1418 | 20 162 417 498 403 1418 1037 . 401 368 350 303 624 218 6 Initial 644 | . 11 7 67 77 228 644 . 182 169 81 117 79 175 6 Average 383 | 8 55 179 218 254 808 714 . 258 227 170 153 439 181 3 Maximum Alert Level 4 | . . 2 2 2 4 3 . 2 1 1 1 2 1 . Low Security (%) 33 | 100 100 63 36 22 . . . 32 28 66 80 12 67 100 Level 1 31 | . . 33 50 72 14 . . 66 71 33 19 16 32 . Level 2 18 | . . 3 12 4 30 51 . . . . . 71 . . Level 3 13 | . . . . . 29 48 . . . . . . . . Level 4 3 | . . . . . 26 . . . . . . . . . Level 5 . | . . . . . . . . . . . . . . . High Security . | . . . . . . . . . . . . . . . Max Security . | . . . . . . . . . . . . . . . Squads Dispatched 46 | . 4 6 7 5 . 15 . 3 1 1 . 4 . . Investigation 25 | . 4 5 4 2 . 6 . 1 . 1 . 2 . . Extermination 8 | . . . . . . 5 . 2 . . . 1 . . Reinforcement 5 | . . 1 . . . 2 . . 1 . . 1 . . Assault 2 | . . . . . . 2 . . . . . . . . Garrison 6 | . . . 3 3 . . . . . . . . . . Intercept . | . . . . . . . . . . . . . . . Searches Triggered . | . . . . . . . . . . . . . . . Construction Impeded 1 | . . . . . . 1 . . . . . . . . Haulers Reinforced 2 | . . . . . . 1 . . . . . 1 . . Active Scanning Responses . | . . . . . . . . . . . . . . . Cargo Convoy Interrupts . | . . . . . . . . . . . . . . . Stealth | -11 -10 -9 -9 -8 -8 -7 -7 -6 -6 -6 -6 -6 -5 -5 --------- Run | Yrd Mat Mat Sto Mat Gar Fac Low Fac Ext Cet Arc Hub Fac Was Distress Signals 15 | . 1 2 2 . . 1 . 2 2 2 1 2 . . Communications Jammed . | . . . . . . . . . . . . . . . Distress Signals . | . . . . . . . . . . . . . . . Times Spotted 345 | . 14 46 41 21 40 64 7 20 33 10 20 22 1 6 Peak Tracking Total 16 | . 3 6 6 4 5 8 4 4 6 5 16 9 1 6 Tactical Retreats 27 | . . 2 4 2 4 7 1 2 4 1 . . . . Traps | -11 -10 -9 -9 -8 -8 -7 -7 -6 -6 -6 -6 -6 -5 -5 ------- Run | Yrd Mat Mat Sto Mat Gar Fac Low Fac Ext Cet Arc Hub Fac Was Traps Triggered 12 | . 1 2 1 . 4 3 . . . . . . 1 . Indirectly . | . . . . . . . . . . . . . . . Trap Hack Attempts . | . . . . . . . . . . . . . . . Triggered . | . . . . . . . . . . . . . . . Disarmed 1 | . 1 . . . . . . . . . . . . . Reprogrammed . | . . . . . . . . . . . . . . . Reused 2 | . . . . . . . 1 1 . . . . . . Traps Extracted . | . . . . . . . . . . . . . . . Installed 2 | . . . . . . . 1 1 . . . . . . Triggered 3 | . . . . . . . 1 1 1 . . . . . Most Traps Carried 2 | . . . . . . . 2 1 . . . . . . Machines | -11 -10 -9 -9 -8 -8 -7 -7 -6 -6 -6 -6 -6 -5 -5 ---------- Run | Yrd Mat Mat Sto Mat Gar Fac Low Fac Ext Cet Arc Hub Fac Was Machines Disabled 38 | . . 2 5 1 5 9 . . 1 . 2 13 . . Max in Single Turn 5 | . . 1 1 1 1 2 . . . . 1 5 . . Garrison Access 1 | . . . . . . . . 1 . . . . . . Garrison Relay 4 | . . . . . 4 . . . . . . . . . Machines Repaired . | . . . . . . . . . . . . . . . Machines Dismantled . | . . . . . . . . . . . . . . . Machines Sabotaged . | . . . . . . . . . . . . . . . Overloaded Fab Kills . | . . . . . . . . . . . . . . . Hacking | -11 -10 -9 -9 -8 -8 -7 -7 -6 -6 -6 -6 -6 -5 -5 --------- Run | Yrd Mat Mat Sto Mat Gar Fac Low Fac Ext Cet Arc Hub Fac Was Machines Accessed 67 | . 7 13 14 5 2 12 . 4 3 3 . 3 1 . Terminals 48 | . 6 9 9 3 2 8 . 2 3 3 . 3 . . Fabricators 3 | . . . . . . 2 . 1 . . . . . . Repair Stations 3 | . . 1 2 . . . . . . . . . . . Recycling Units 5 | . 1 1 2 1 . . . . . . . . . . Scanalyzers 4 | . . 2 . . . 1 . . . . . . 1 . Garrison Access 4 | . . . 1 1 . 1 . 1 . . . . . . Total Hacks 206 | . 26 52 35 20 3 31 . 11 7 9 . 7 5 . Successful 118 | . 15 41 16 11 2 13 . 9 3 4 . 2 2 . Failed 87 | . 10 11 19 9 1 18 . 2 4 5 . 5 3 . Catastrophic 10 | . 1 3 2 . . 3 . . . 1 . . . . Database Lockouts 1 | . 1 . . . . . . . . . . . . . Manual 96 | . 15 27 18 12 . 10 . 6 . 3 1 4 . . Terminals 149 | . 25 31 27 15 3 18 . 7 7 9 . 7 . . Fabricators 9 | . . . . . . 7 . 2 . . . . . . Repair Stations 6 | . . 2 4 . . . . . . . . . . . Recycling Units 10 | . 1 5 2 2 . . . . . . . . . . Scanalyzers 23 | . . 14 . . . 4 . . . . . . 5 . Garrison Access 9 | . . . 2 3 . 2 . 2 . . . . . . Terminal Hacks 63 | . 11 17 8 7 2 4 . 5 3 4 . 2 . . Record 5 | . . . 1 . . . . . . 4 . . . . Part Schematic 5 | . 1 1 1 . . 1 . 1 . . . . . . Robot Schematic 1 | . . . . . . 1 . . . . . . . . Robot Analysis 9 | . 2 5 . 1 . . . 1 . . . . . . Prototype ID Bank 3 | . 2 . 1 . . . . . . . . . . . Open Door 3 | . . . . . . . . 1 2 . . . . . Open DSF 1 | . . . . . . 1 . . . . . . . . Level Access Points 1 | . . 1 . . . . . . . . . . . . Emergency Access Points 2 | . . . . 1 1 . . . . . . . . . Terminal Index 4 | . 1 1 . 1 . 1 . . . . . . . . Scanalyzer Index 1 | . . 1 . . . . . . . . . . . . Unreport Threat 10 | . 2 2 5 . . . . . . . . 1 . . Locate Traps 2 | . . 1 . 1 . . . . . . . . . . Disarm Traps 1 | . 1 . . . . . . . . . . . . . Dispatch Records 1 | . 1 . . . . . . . . . . . . . Patrol Status 2 | . . 1 . . . . . 1 . . . . . . Recall Investigation 1 | . . 1 . . . . . . . . . . . . Hauler Manifests 5 | . 1 2 . 1 . . . . . . . 1 . . Registered Components 2 | . . 1 . . . . . 1 . . . . . . Zone Layout 3 | . . . . 2 . . . . 1 . . . . . Garrison Registry 1 | . . . . . 1 . . . . . . . . . Fabricator Hacks 2 | . . . . . . 1 . 1 . . . . . . Network Status 2 | . . . . . . 1 . 1 . . . . . . Repair Station Hacks 5 | . . 2 3 . . . . . . . . . . . Scan Component 3 | . . 1 2 . . . . . . . . . . . Repair 2 | . . 1 1 . . . . . . . . . . . Recycling Unit Hacks 2 | . . 2 . . . . . . . . . . . . Report Inventory 1 | . . 1 . . . . . . . . . . . . Retrieve Matter 1 | . . 1 . . . . . . . . . . . . Scanalyzer 16 | . . 12 . . . 2 . . . . . . 2 . Insert Component 7 | . . 5 . . . 1 . . . . . . 1 . Analyze 9 | . . 7 . . . 1 . . . . . . 1 . Garrison Access Hacks 6 | . . . 1 1 . 2 . 2 . . . . . . Unlock Access 3 | . . . 1 1 . 1 . . . . . . . . Seal Access 1 | . . . . . . . . 1 . . . . . . Coupler Status 2 | . . . . . . 1 . 1 . . . . . . Unauthorized Hacks 24 | . 4 8 4 3 . 4 . 1 . . . . . . Terminals 15 | . 3 4 2 2 . 3 . 1 . . . . . . Track 1 | . . . . 1 . . . . . . . . . . Botnet 14 | . 3 4 2 1 . 3 . 1 . . . . . . Fabricators 1 | . . . . . . 1 . . . . . . . . Report 1 | . . . . . . 1 . . . . . . . . Repair Stations . | . . . . . . . . . . . . . . . Recycling Units 6 | . 1 2 2 1 . . . . . . . . . . Reject 4 | . . 1 2 1 . . . . . . . . . . Tunnel 2 | . 1 1 . . . . . . . . . . . . Scanalyzers 2 | . . 2 . . . . . . . . . . . . Extract 2 | . . 2 . . . . . . . . . . . . Garrison Access . | . . . . . . . . . . . . . . . Data Cores Recovered 2 | . . 1 1 . . . . . . . . . . . Used . | . . . . . . . . . . . . . . . Hacking Detections 54 | . 5 10 11 4 1 11 . 3 2 3 . 3 1 . Full Trace Events 26 | . 4 5 5 3 . 5 . 1 . 1 . 2 . . Feedback Events 4 | . 2 . 1 . . 1 . . . . . . . . Corruption 4 | . 2 . 1 . . 1 . . . . . . . . Feedback Blocked . | . . . . . . . . . . . . . . . Robot Schematics Acquired 1 | . . . . . . 1 . . . . . . . . Robots Built . | . . . . . . . . . . . . . . . Authchips . | . . . . . . . . . . . . . . . Time . | . . . . . . . . . . . . . . . Total Robot Build Rating . | . . . . . . . . . . . . . . . Part Schematics Acquired 18 | . 1 12 1 . . 2 . 1 . . . . 1 . Parts Built . | . . . . . . . . . . . . . . . Authchips . | . . . . . . . . . . . . . . . Time . | . . . . . . . . . . . . . . . Total Part Build Rating . | . . . . . . . . . . . . . . . Parts Repaired 2 | . . 1 1 . . . . . . . . . . . Time 60 | . . 38 22 . . . . . . . . . . . Parts Recycled . | . . . . . . . . . . . . . . . Recycled Matter . | . . . . . . . . . . . . . . . Retrieved Matter 220 | . . 220 . . . . . . . . . . . . Retrieved Components . | . . . . . . . . . . . . . . . Parts Scanalyzed 7 | . . 5 . . . 1 . . . . . . 1 . Part Schematics Acquired 7 | . . 5 . . . 1 . . . . . . 1 . Parts Damaged . | . . . . . . . . . . . . . . . Bothacking | -11 -10 -9 -9 -8 -8 -7 -7 -6 -6 -6 -6 -6 -5 -5 ------------ Run | Yrd Mat Mat Sto Mat Gar Fac Low Fac Ext Cet Arc Hub Fac Was Used RIF Installer 1 | . . . . . 1 . . . . . . . . . Robots Hacked 6 | . . . . . . 6 . . . . . . . . Non-combat 6 | . . . . . . 6 . . . . . . . . Combat . | . . . . . . . . . . . . . . . Robot Hacks Applied 8 | . . . . . . 8 . . . . . . . . find_chute 1 | . . . . . . 1 . . . . . . . . deconstruct_machine 2 | . . . . . . 2 . . . . . . . . map_walls 2 | . . . . . . 2 . . . . . . . . find_station 1 | . . . . . . 1 . . . . . . . . overload_power 1 | . . . . . . 1 . . . . . . . . formatsys_low 1 | . . . . . . 1 . . . . . . . . Relay Couplers Released 17 | . . . . . 14 . . 3 . . . . . . Machine Destruction 17 | . . . . . 14 . . 3 . . . . . . Attached 1 | . . . . . . 1 . . . . . . . . Fabnet Peak Effective % . | . . . . . . . . . . . . . . . Robots Rewired . | . . . . . . . . . . . . . . . Allies Hacked . | . . . . . . . . . . . . . . . Hacks Repelled . | . . . . . . . . . . . . . . . Allies | -11 -10 -9 -9 -8 -8 -7 -7 -6 -6 -6 -6 -6 -5 -5 -------- Run | Yrd Mat Mat Sto Mat Gar Fac Low Fac Ext Cet Arc Hub Fac Was Total Allies 8 | . . . . . . 1 1 . 3 3 . . . . Largest Group 4 | . . . . . . 1 1 . 3 4 2 . . . Highest-Rated Group 399 | . . . . . . 23 146 . 215 399 207 . . . Highest-Rated Ally 159 | . . . . . . 23 146 . 159 159 111 . . . Total Orders 2 | . . . . . . 2 . . . . . . . . STAY 1 | . . . . . . 1 . . . . . . . . AID 1 | . . . . . . 1 . . . . . . . . Ally Attacks 100 | . . . . . . . . . 46 42 12 . . . Total Damage 3473 | . . . . . . . . . 1317 1831 325 . . . Kills 26 | . . . . . . . . . 13 10 3 . . . Allies Corrupted . | . . . . . . . . . . . . . . . Allies Melted . | . . . . . . . . . . . . . . . Intel | -11 -10 -9 -9 -8 -8 -7 -7 -6 -6 -6 -6 -6 -5 -5 ------- Run | Yrd Mat Mat Sto Mat Gar Fac Low Fac Ext Cet Arc Hub Fac Was Robot Analysis Total 9 | . 2 5 . 1 . . . 1 . . . . . . Derelict Logs Recovered . | . . . . . . . . . . . . . . . Drone Launches . | . . . . . . . . . . . . . . . Drone Recoveries . | . . . . . . . . . . . . . . . Exploration | -11 -10 -9 -9 -8 -8 -7 -7 -6 -6 -6 -6 -6 -5 -5 ------------- Run | Yrd Mat Mat Sto Mat Gar Fac Low Fac Ext Cet Arc Hub Fac Was Turns Passed 13145 | 134 626 1707 1510 733 1583 2499 685 784 1249 343 278 431 421 162 Spaces Moved 6520 | 88 354 967 749 407 677 1207 360 357 581 172 68 181 240 112 Core 60 | 7 . . . . . . . . . . . . . 53 Treads 2852 | . . . . . 242 599 354 357 581 172 68 181 240 58 Legs 1 | . . . . . . . . . . . . . . 1 Wheels 3607 | 81 354 967 749 407 435 608 6 . . . . . . . Hover . | . . . . . . . . . . . . . . . Flight . | . . . . . . . . . . . . . . . Fastest Speed 50 | 50 100 116 116 120 105 105 115 170 160 160 160 160 160 50 Average Speed 141 | 96 127 120 128 123 134 149 171 170 163 160 160 160 161 109 Slowest Speed 320 | 100 135 190 210 140 320 240 250 170 240 160 160 160 163 163 Overloaded Moves . | . . . . . . . . . . . . . . . Propulsion Burnouts . | . . . . . . . . . . . . . . . Robots Hopped . | . . . . . . . . . . . . . . . Cave-ins Triggered . | . . . . . . . . . . . . . . . Exploration Rate (%) 49 | 4 72 75 93 32 78 36 50 10 73 64 81 21 6 49 Regions Visited 14 Branch Regions 6 Pre-discovered Areas 2 | . 1 1 . . . . . . . . . . . . Known Exits Taken 2 | . . . 1 1 . . . . . . . . . . Unknown Exits Taken 10 | 1 1 1 . . . 1 1 1 1 1 1 1 . . Scrap Searched 2 | . . . . . . . 2 . . . . . . . Spaces Dug 35 | . . 10 4 . 1 16 1 2 . . . . 1 . Terrain Destroyed 239 | . . 11 23 37 3 25 1 2 . . 30 106 1 . Melee 28 | . . 10 4 . 1 9 1 2 . . . . 1 . Projectile 15 | . . 1 . . 2 12 . . . . . . . . AOE 196 | . . . 19 37 . 4 . . . . 30 106 . . Terrain Rammed . | . . . . . . . . . . . . . . . Walls Destroyed . | . . . . . . . . . . . . . . . Machines Disabled . | . . . . . . . . . . . . . . . Actions | -11 -10 -9 -9 -8 -8 -7 -7 -6 -6 -6 -6 -6 -5 -5 --------- Run | Yrd Mat Mat Sto Mat Gar Fac Low Fac Ext Cet Arc Hub Fac Was Total 8912 | 122 441 1280 1018 529 1064 1672 406 461 796 216 231 265 268 143 Wait 624 | . 6 64 51 32 87 163 4 6 65 4 138 4 . . Move 6507 | 87 353 966 748 406 676 1206 359 356 580 171 67 180 240 112 Hop . | . . . . . . . . . . . . . . . Pick Up 322 | 17 24 42 26 14 42 45 8 22 40 7 8 16 9 2 Fast Attach . | . . . . . . . . . . . . . . . Attach 186 | 8 3 23 15 10 26 29 10 12 23 5 3 11 4 4 Detach 7 | . . . . . 1 2 2 . 1 . . 1 . . Swap 71 | . 1 17 10 2 12 11 . 1 6 3 3 3 2 . Drop 209 | 2 8 32 21 8 37 32 4 14 21 9 6 8 7 . Fire 508 | 8 45 125 55 57 140 58 6 . . . 3 11 . . Melee 439 | . . 11 92 . 27 126 12 49 60 17 3 31 6 5 Ram 21 | . 1 . . . . . . . . . . . . 20 Kick . | . . . . . . . . . . . . . . . Crush . | . . . . . . . . . . . . . . . Escape Stasis 16 | . . . . . 16 . . . . . . . . . Rewire . | . . . . . . . . . . . . . . . Trap 2 | . . . . . . . 1 1 . . . . . . Miscellaneous . | . . . . . . . . . . . . . . . Route ------- -11/Scrapyard -10/Materials (discovered 4 exits: *Mat x3 / [*Min]) -9/Materials (discovered 5 exits: *Mat x3 / [*Min] / *Sto) -9/Storage (discovered 2 exits: *Mat / Gar) -8/Materials -8/Garrison (discovered 4 exits: *Fac x3 / [Mat]) -7/Factory (discovered 3 exits: [*Low x2] / Gar) -7/Lower Caves -6/Factory -6/Extension (discovered 2 exits: *Fac / *Cet) -6/Cetus -6/Archives -6/Hub_04(d) -5/Factory -5/Waste History --------- Turn | Location | Event 37 | -11/Scrapyard | Discovered new exit (range 14) 135 | -11/Scrapyard | Entered Materials 180 | -10/Materials | Discovered new exit (range 13) 283 | -10/Materials | Central database locked down 303 | -10/Materials | Build established: Mutant 406 | -10/Materials | Discovered new exit (range 5) 490 | -10/Materials | Discovered new exit (range 16) 734 | -10/Materials | Discovered new exit (range 16) 761 | -10/Materials | Entered another Materials area 761 | -9/Materials | Evolved 2 slots: Power x1, Propulsion x1 1109 | -9/Materials | Repaired Lgt. Nuclear Core 1170 | -9/Materials | Discovered new exit (range 15) 1177 | -9/Materials | Build established: Scavenger-Mutant 1628 | -9/Materials | Identified exit to Materials 2346 | -9/Materials | Discovered new exit (range 12) 2468 | -9/Materials | Entered Storage 2622 | -9/Storage | Garrison activated, responded to threat 2717 | -9/Storage | Identified exit to Garrison 2769 | -9/Storage | Repaired Broken Hvy. Assault Rifle 3436 | -9/Storage | Discovered exit to Materials (range 5) 3443 | -9/Storage | Build established: Mutant 3836 | -9/Storage | Core integrity fell below 50% 3978 | -9/Storage | Entered Materials 3978 | -8/Materials | Evolved 2 slots: Utility x2 4390 | -8/Materials | Garrison activated, responded to threat 4432 | -8/Materials | Identified exit to Garrison 4693 | -8/Materials | Build established: Scavenger-Mutant 4711 | -8/Materials | Entered Garrison 4751 | -8/Garrison | Triggered checkpoint 4823 | -8/Garrison | Garrison Relay disabled 4836 | -8/Garrison | Garrison Relay disabled 4975 | -8/Garrison | Lost 4 parts (2n2u) 5109 | -8/Garrison | Triggered checkpoint 5173 | -8/Garrison | Spotted B-75 Beast 5219 | -8/Garrison | Discovered new exit (range 10) 5235 | -8/Garrison | Triggered checkpoint 5299 | -8/Garrison | Garrison Relay disabled 5401 | -8/Garrison | Triggered checkpoint 5443 | -8/Garrison | Triggered checkpoint 5483 | -8/Garrison | Destroyed 9 combat bots 5799 | -8/Garrison | Discovered new exit (range 10) 5861 | -8/Garrison | Triggered checkpoint 5879 | -8/Garrison | Garrison Relay disabled 5969 | -8/Garrison | Spotted B-75 Beast 6000 | -8/Garrison | Destroyed B-75 Beast 6057 | -8/Garrison | Discovered new exit (range 76) 6057 | -8/Garrison | Discovered new exit (range 27) 6057 | -8/Garrison | Discovered new exit (range 33) 6057 | -8/Garrison | Discovered new exit (range 23) 6195 | -8/Garrison | Installed Relay Interface Framework 6294 | -8/Garrison | Entered Factory 6294 | -7/Factory | Evolved 2 slots: Utility x2 6694 | -7/Factory | First assault squad dispatched 6842 | -7/Factory | Lost 3 parts (1p2n) 7356 | -7/Factory | Discovered new exit (range 6) 7588 | -7/Factory | Identified exit to Garrison 7939 | -7/Factory | Lost 8 parts (3p3n1u1w) 8092 | -7/Factory | Build established: Mutant 8102 | -7/Factory | System corruption reached 10% 8455 | -7/Factory | Core integrity fell below 50% 8539 | -7/Factory | Build established: Hacker-Mutant 8720 | -7/Factory | Discovered new exit (range 14) 8793 | -7/Factory | Entered Lower Caves 8795 | -7/Lower Caves | Attracted the attention of an 0b10 checkpoint 9200 | -7/Lower Caves | Ambushed by wild Derelicts 9380 | -7/Lower Caves | Spotted B-75 Beast 9394 | -7/Lower Caves | Core integrity fell below 20% 9404 | -7/Lower Caves | Destroyed B-75 Beast 9453 | -7/Lower Caves | NK-0LA showed up to help 9455 | -7/Lower Caves | NK-0LA revealed a hidden path 9478 | -7/Lower Caves | Entered Factory 9478 | -6/Factory | Evolved 2 slots: Propulsion x1, Utility x1 9698 | -6/Factory | Build established: Hacker-Gladiator 10257 | -6/Factory | Discovered new exit (range 5) 10262 | -6/Factory | Entered Extension 10458 | -6/Extension | Build established: Gladiator 10707 | -6/Extension | Lost 4 parts (1p1n2u) 10880 | -6/Extension | Rescued A7 11020 | -6/Extension | Spotted B-75 Beast 11041 | -6/Extension | Spotted B-75 Beast 11076 | -6/Extension | Destroyed B-75 Beast 11110 | -6/Extension | Lost 9 parts (1p4n3u1w) 11254 | -6/Extension | Build established: Scavenger-Gladiator 11343 | -6/Extension | Core integrity fell below 50% 11456 | -6/Extension | Rescued a captive Derelict 11457 | -6/Extension | Rescued a captive Derelict 11487 | -6/Extension | Discovered new exit (range 10) 11489 | -6/Extension | Discovered new exit (range 6) 11511 | -6/Extension | Entered Cetus 11511 | -6/Cetus | Accompanied by 3 allies (A7) 11516 | -6/Cetus | Acquired a Cetus Manufacturing Module code from A7 11533 | -6/Cetus | Spotted Cetus Guard 11533 | -6/Cetus | Spotted Cetus Guard 11537 | -6/Cetus | Spotted Cetus Guard 11537 | -6/Cetus | Spotted Cetus Guard 11553 | -6/Cetus | Allies destroyed Cetus Guard 11564 | -6/Cetus | Allies destroyed Cetus Guard 11568 | -6/Cetus | Destroyed Cetus Guard 11570 | -6/Cetus | Allies destroyed Cetus Guard 11761 | -6/Cetus | Started Cetus Manufacturing Module 11785 | -6/Cetus | Discovered new exit (range 16) 11786 | -6/Cetus | Manufactured an Enhanced Grunt 11811 | -6/Cetus | Manufactured an Enhanced Grunt 11813 | -6/Cetus | Spotted Cetus Guard 11813 | -6/Cetus | Spotted Cetus Guard 11836 | -6/Cetus | Manufactured an Enhanced Grunt 11854 | -6/Cetus | Entered Archives 11854 | -6/Archives | Accompanied by 2 allies (A7) 12043 | -6/Archives | Met Zhirov 12049 | -6/Archives | Reinforcements dispatched to Archives 12086 | -6/Archives | Unable to access archive contents 12094 | -6/Archives | Reinforcements dispatched to Archives 12096 | -6/Archives | Zhirov warped through subspace 12107 | -6/Archives | Discovered new exit (range 16) 12114 | -6/Archives | Zhirov detonated Archives 12132 | -6/Archives | Entered Hub_04(d) 12296 | -6/Hub_04(d) | Destroyed 11 combat bots 12392 | -6/Hub_04(d) | Core integrity fell below 20% 12397 | -6/Hub_04(d) | System corruption reached 10% 12435 | -6/Hub_04(d) | Lost 5 parts (2n3u) 12539 | -6/Hub_04(d) | Discovered new exit (range 15) 12563 | -6/Hub_04(d) | Entered Factory 12563 | -5/Factory | Evolved 2 slots: Utility x2 12865 | -5/Factory | Build established: Hacker-Gladiator 12984 | -5/Factory | Sucked down chute 12984 | -5/Factory | Entered Waste 12999 | -5/Waste | EMP discharged 13029 | -5/Waste | Spotted C-40 Crusher 13045 | -5/Waste | Spotted C-40 Crusher 13046 | -5/Waste | Spotted C-40 Crusher 13069 | -5/Waste | Spotted C-40 Crusher 13079 | -5/Waste | Crushed by Compactor (1 part destroyed, 1 dropped) 13082 | -5/Waste | Crushed by Compactor (1 part destroyed, 1 dropped) 13085 | -5/Waste | Crushed by Compactor (0 parts destroyed, 1 dropped) 13088 | -5/Waste | Crushed by Compactor (0 parts destroyed, 1 dropped) 13089 | -5/Waste | Crushed by Compactor (1 part destroyed) 13092 | -5/Waste | Crushed by Compactor (1 part destroyed, 1 dropped) 13094 | -5/Waste | Crushed by Compactor (1 part destroyed, 2 dropped) 13095 | -5/Waste | Crushed by Compactor (1 part destroyed, 1 dropped) 13096 | -5/Waste | Spotted C-40 Crusher 13098 | -5/Waste | Crushed by Compactor (1 part destroyed, 2 dropped) 13099 | -5/Waste | EMP discharged 13099 | -5/Waste | System corruption reached 10% 13125 | -5/Waste | Crushed by Compactor (1 part destroyed, 1 dropped) 13137 | -5/Waste | Core integrity fell below 50% 13142 | -5/Waste | Spotted C-40 Crusher 13143 | -5/Waste | Core integrity fell below 20% 13146 | -5/Waste | Destroyed by C-40 Crusher with Compactor Last Messages --------------- 13100_ Corrupted Arm. Medium Treads crushed. 13102_ Centrium Medium Armor Plating crushed. 13106_ Acquired Broken Quantum Rifle. 13125_ Slammed into C-40 Crusher. 13125_ Destabilizing: System interference. 13125_ Core Analyzer temporarily disabled. 13125_ Core Analyzer crushed. 13125_ Imp. Melee Analysis Suite crushed. 13127_ Slammed into C-40 Crusher. 13127_ Destabilizing: System corrupted (+1). 13128_ Slammed into C-40 Crusher. 13133_ Destabilizing: System corrupted (+2). 13134_ Slammed into C-40 Crusher. 13136_ Destabilizing: Core damaged (-50). 13137_ Slammed into C-40 Crusher. 13140_ System corrupted: Heat flow error (+202). 13140_ Slammed into C-40 Crusher. 13142_ Destabilizing: Core damaged (-40). 13143_ Slammed into C-40 Crusher. 13145_ Destabilizing: Core damaged (-10). Map ----- +----------------------------------------------------+ | ????????????????????????????????# #???????? | | ????????????????????????????????# #???????? | | ??????????######??????######????# ????????? | | ??????????# #??????# #??????# #?????????? | | ??????????# #??????# #??????# #?????????? | | ??????????# #??????# #??????# #?????????? | | ??????????# #??????# #??????#! #?????????? | | ????????### ######## ######## #######???? | | ????????#= | | ????????# | | ????????# = | | ????????# | | ????????### ######## CC######## ######## | | ########??# #??????# CC#??????# #????????? | | #??# #??????# #??????# #?????????? | | #??# #??????# #??????# #?????????? | | #### #??????# #??????# #?????????? | | #??????# #??????# #?????????? | | ! #??????# #??????# #?????????? | | #??????# #??????# #?????????? | | =#??????# #??????# #?????????? | | #### #??????# #??????# #?????????? | | #??# #??????#CC #??????# #?????????? | | #??# #??????#CCCC#??????? ??????????? | | ########??# #??????#CCCC#?????????????????????? | | ??????????# #??????#CC@ #?????????????????????? | | ?????????? #??????#CCCC#?????????????????????? | | ?????????? #??????#CCCC#?????????????????????? | | ????????? #??????# #?????????????????????? | | ????????? #??????# #?????????????????????? | | ?????????## #??????# #?????????????????????? | | ??????????? #??????# #?????????????????????? | | ??????????? ???????# #?????????????????????? | | ??????????????????????# #?????????????????????? | | ??????????????????????# #?????????????????????? | | ??????????????????????######?????????????????????? | | ?????????????????????????????????????????????????? | | ?????????????????????????????????????????????????? | | ?????????????????????????????????????????????????? | | ?????????????????????????????????????????????????? | | ?????????????????????????????????????????????????? | | ?????????????????????????????????????????????????? | | ?????????????????????????????????????????????????? | | ?????????????????????????????????????????????????? | | ?????????????????????????????????????????????????? | | ?????????????????????????????????????????????????? | | ?????????????????????????????????????????????????? | | ?????????????????????????????????????????????????? | | ?????????????????????????????????????????????????? | | ?????????????????????????????????????????????????? | +----------------------------------------------------+ Best States ------------- Heat Dissipation 59 Energy Generation 36 Energy Capacity 540 Matter Stores 300 Matter Capacity 300 Sight Range 16 Robot Scan Range 14 Terrain Scan Range 16 Terrain Scan Density 10 Jamming Range 12 Armor Coverage 600 Resistance: KI 20 Resistance: TH 20 Resistance: EX 20 Resistance: EM 20 Resistance: I 20 Resistance: S 20 Resistance: P 20 Power Shielding 66 Melee Speed Boost 20 Evasion (%) 50 Targeting Accuracy 8 Melee Accuracy 20 Target Analysis 5 Core Analysis 6 Recoil Reduction 4 Force Boost 20 Offensive Hacking 32 Relay Coupler Types 1 Relay Coupler Value 38 Item Schematics ----------------- Ion Engine | -10/Materials | Hacked Shotgun | -9/Materials | Hacked Arm. Wheel | -9/Materials | Scanalyzed Med. Storage Unit | -9/Materials | Extracted Hvy. Assault Rifle | -9/Materials | Scanalyzed Hvy. Ion Engine | -9/Materials | Scanalyzed Lgt. Treads | -9/Materials | Scanalyzed Particle Gun | -9/Materials | Scanalyzed Imp. Aluminum Leg | -9/Materials | Extracted Terrain Scanner | -9/Materials | Extracted Med. Armor Plating | -9/Materials | Extracted Hcp. Storage Unit | -9/Materials | Extracted Lgt. EM Pulse Cannon | -9/Materials | Extracted Imp. Treads | -9/Storage | Hacked Imp. Melee Analysis Suite | -7/Factory | Scanalyzed Imp. Hacking Suite | -7/Factory | Hacked Arm. Treads | -6/Factory | Hacked Centrium Medium Armor Plating | -5/Factory | Scanalyzed Robot Schematics ------------------ L-31 Rogue | -7/Factory | Hacked Fabricated ------------ Nothing Alien Tech Used ----------------- None Achievements -------------- Prison Break Project G-00 Challenges ------------ None Game ------ Seed UltimateGhostShotgun Manual? 0 Play Time 02:52:42 Cumulative 186.1 hours Start 2024.04.19 @ 20:29:40 End 2024.04.19 @ 23:29:31 Sessions 1 Manual Loads 0 Difficulty Adventurer Special Mode None Game No. 30 Rogue 0 Adventurer 30 Explorer 0 Win Type - Total 2 Types 2/0/0/0/0/0/0/0/0 Lore% 21 Gallery% 60 Achievement% 48 Wizard Run 0 Options --------- Layout 2 ASCII 0 Keyboard 0 Movement Mouse Keybinds 0 Fullscreen 1 Font 24/Smallcaps Map View 50x49 Zoom Use 5% Tactical HUD 1 Map Filters NONE Filters NONE Steam 1 RUN: e30c970a-9274-4ffb-813a-258056ae45c8